bitfinex/quotes_BTCUSD_20241009
["timestamp","ask_amount","ask_price","bid_price","bid_amount"]
[1728467104318,0.00258588,62260.0,62259.0,0.36975344]
[1728467104549,0.00632334,62260.0,62259.0,0.23718058]
[1728467104784,0.01413943,62260.0,62259.0,0.18905344]
[1728467106048,0.00258588,62260.0,62259.0,0.52697244]
[1728467106279,0.00258588,62260.0,62259.0,0.62697244]
[1728467106505,0.00258588,62260.0,62259.0,0.7232227]
[1728467110594,0.00258588,62260.0,62259.0,0.62697244]
[1728467110802,0.00258588,62260.0,62259.0,0.72317438]
[1728467115944,0.00258588,62260.0,62259.0,0.7232032]
[1728467117333,0.00158588,62260.0,62259.0,0.61297244]
[1728467117488,0.00258588,62260.0,62259.0,0.62497244]
[1728467118030,0.00158588,62260.0,62259.0,0.61197244]
[1728467118445,0.00258588,62260.0,62259.0,0.62297244]
[1728467118808,0.00158588,62260.0,62259.0,0.61197244]
[1728467119185,0.00158588,62260.0,62259.0,0.62297244]
[1728467119186,0.00258588,62260.0,62259.0,0.62297244]
[1728467119394,0.00158588,62260.0,62259.0,0.61097244]
[1728467119839,0.00158588,62260.0,62259.0,0.62297244]
[1728467119840,0.00258588,62260.0,62259.0,0.62297244]
[1728467124457,0.00258588,62260.0,62259.0,0.51783391]
[1728467125832,0.00258588,62260.0,62259.0,0.69083391]
[1728467126088,0.00258588,62260.0,62259.0,0.73894189]
[1728467126305,0.00258588,62260.0,62259.0,0.61867244]
[1728467129804,0.00258588,62260.0,62259.0,0.62367244]
[1728467130258,0.00258588,62260.0,62259.0,1.03077518]
[1728467130498,0.00258588,62260.0,62259.0,0.64667244]
[1728467131225,0.00158588,62260.0,62259.0,0.63567244]
[1728467131652,0.00258588,62260.0,62259.0,0.62367244]
[1728467132075,0.00358588,62260.0,62259.0,0.62367244]
[1728467132283,0.00058588,62260.0,62259.0,0.62367244]
[1728467132488,0.00058588,62260.0,62259.0,0.62567244]
[1728467132707,0.00058588,62260.0,62259.0,0.62767244]
[1728467137491,0.00058588,62260.0,62259.0,0.77174382]
[1728467138228,0.00058588,62260.0,62259.0,0.7717424]
[1728467140266,0.02399953,62269.0,62268.0,0.01]
[1728467140481,0.02399953,62269.0,62268.0,0.71267115]
[1728467140482,0.03182831,62269.0,62268.0,0.71267115]
[1728467140703,0.02399953,62269.0,62268.0,0.71267115]
[1728467141567,0.02399953,62269.0,62268.0,0.73667115]
[1728467141568,0.02599953,62269.0,62268.0,0.73667115]
[1728467141776,0.02699953,62269.0,62268.0,0.73767115]
[1728467143100,0.01902969,62276.0,62269.0,0.293593]
[1728467143339,0.01902969,62276.0,62273.0,0.170583]
[1728467143582,0.01902969,62276.0,62273.0,0.61679644]
[1728467143803,0.01902969,62276.0,62273.0,0.73661343]
[1728467144034,0.01902969,62276.0,62273.0,0.54725815]
[1728467144259,0.01902969,62276.0,62273.0,0.64622305]
[1728467144478,0.01902969,62276.0,62273.0,0.55132013]
[1728467144687,0.01902969,62276.0,62273.0,0.55332013]
[1728467146217,0.01902969,62276.0,62273.0,0.55132013]
[1728467147573,0.01902969,62276.0,62273.0,0.59922958]
[1728467148641,0.01902969,62276.0,62273.0,0.55132013]
[1728467150222,0.0236945,62274.0,62273.0,0.55132013]
[1728467153008,0.0236945,62274.0,62273.0,0.5992255]
[1728467153635,0.0236945,62274.0,62273.0,0.7714255]
[1728467153851,0.0236945,62274.0,62273.0,0.7944255]
[1728467154104,0.0236945,62274.0,62273.0,0.67316379]
[1728467154347,0.0236945,62274.0,62273.0,0.74652013]
[1728467155512,0.0236945,62274.0,62273.0,0.72352013]
[1728467158585,0.0236945,62274.0,62273.0,0.77142497]
[1728467158816,0.0236945,62274.0,62273.0,0.72352013]
[1728467159430,0.0236945,62274.0,62273.0,0.77144072]
[1728467159640,0.0236945,62274.0,62273.0,0.69254072]
[1728467160626,0.0236945,62274.0,62273.0,0.69254488]
[1728467162218,0.0236945,62274.0,62273.0,0.59924488]
[1728467162639,0.0236945,62274.0,62273.0,0.59424488]
[1728467163431,0.0236945,62274.0,62273.0,0.59924488]
[1728467163639,0.0236945,62274.0,62273.0,0.59424488]
[1728467164563,0.0236945,62274.0,62273.0,0.47298317]
[1728467164780,0.0236945,62274.0,62273.0,0.42505842]
[1728467165014,0.0236945,62274.0,62273.0,0.32505842]
[1728467165684,0.03578143,62274.0,62273.0,0.32505842]
[1728467166142,0.03578143,62274.0,62273.0,0.16447542]
[1728467166352,0.03578143,62274.0,62273.0,0.32505842]
[1728467166564,0.0236945,62274.0,62273.0,0.32505842]
[1728467166784,0.0236945,62274.0,62273.0,0.16447542]
[1728467166991,0.03576228,62274.0,62273.0,0.16447542]
[1728467167428,0.29274228,62274.0,62273.0,0.00406198]
[1728467167639,0.29647974,62274.0,62272.0,0.00664]
[1728467167842,0.29647974,62274.0,62273.0,0.007]
[1728467168060,0.13689974,62274.0,62273.0,0.008]
[1728467168486,0.13589974,62274.0,62273.0,0.005]
[1728467168692,0.13589974,62274.0,62273.0,0.016]
[1728467169122,0.29647974,62274.0,62273.0,0.011]
[1728467169553,0.29647974,62274.0,62273.0,0.021]
[1728467181540,0.21809974,62274.0,62266.0,0.00424715]
[1728467181746,0.160609,62263.0,62262.0,0.2397794]
[1728467181947,0.24333041,62263.0,62262.0,0.2397794]
[1728467182551,0.160616,62260.0,62256.0,0.0491979]
[1728467182773,0.17354613,62260.0,62256.0,0.0491979]
[1728467182989,0.17354613,62260.0,62252.0,0.2397794]
[1728467184088,0.17728359,62260.0,62252.0,0.2397794]
[1728467184772,0.39246957,62260.0,62252.0,0.2397794]
[1728467184985,0.39073211,62260.0,62252.0,0.2397794]
[1728467185418,0.39273211,62260.0,62252.0,0.2397794]
[1728467185632,0.39673211,62260.0,62252.0,0.2397794]
[1728467186102,0.39273211,62260.0,62252.0,0.2397794]
[1728467186363,0.39073211,62260.0,62252.0,0.2397794]
[1728467186603,0.38873211,62260.0,62252.0,0.2397794]
[1728467186800,0.39073211,62260.0,62252.0,0.2397794]
[1728467187212,0.38873211,62260.0,62252.0,0.2397794]
[1728467187427,0.39373211,62260.0,62252.0,0.2397794]
[1728467187855,0.39573211,62260.0,62252.0,0.2397794]
[1728467189933,0.39373211,62260.0,62252.0,0.2397794]
[1728467190379,0.47250784,62260.0,62252.0,0.2397794]
[1728467195270,0.47450784,62260.0,62252.0,0.2397794]
[1728467195483,0.47250784,62260.0,62252.0,0.2397794]
[1728467196145,0.47450784,62260.0,62252.0,0.2397794]
[1728467196725,0.47250784,62260.0,62252.0,0.2397794]
[1728467196963,0.62333021,62260.0,62252.0,0.2397794]
[1728467204435,0.64850399,62260.0,62252.0,0.2397794]
[1728467208328,0.47580399,62260.0,62252.0,0.2397794]
[1728467213277,0.72531743,62260.0,62247.0,0.0494839]
[1728467213483,0.80791743,62260.0,62253.0,0.2397794]
[1728467213699,0.80991743,62260.0,62253.0,0.2397794]
[1728467215562,0.90991743,62260.0,62253.0,0.2397794]
[1728467223362,0.90991743,62260.0,62247.0,0.0494839]
[1728467223363,0.93291743,62260.0,62247.0,0.0494839]
[1728467242976,1.077261,62260.0,62247.0,0.0494839]
[1728467243808,0.93291743,62260.0,62247.0,0.0494839]
[1728467248835,1.07724832,62260.0,62247.0,0.0494839]
[1728467249822,0.160647,62248.0,62247.0,0.0494839]
[1728467250053,0.30013202,62248.0,62247.0,0.0494839]
[1728467250311,0.30013202,62248.0,62246.0,0.00164]
[1728467250312,0.16065,62247.0,62246.0,0.00164]
[1728467250520,0.16438746,62247.0,62246.0,0.00164]
[1728467250726,0.30546745,62247.0,62246.0,0.00164]
[1728467252183,0.30646745,62247.0,62246.0,0.00164]
[1728467253446,0.30746745,62247.0,62246.0,0.00164]
[1728467260766,0.30946745,62247.0,62246.0,0.00164]
[1728467261263,0.30746745,62247.0,62246.0,0.00164]
[1728467262136,0.42872916,62247.0,62246.0,0.00164]
[1728467262344,0.4249917,62247.0,62246.0,0.00164]
[1728467264627,0.45017104,62247.0,62246.0,0.00164]
[1728467268094,0.54644071,62247.0,62246.0,0.00164]
[1728467269488,0.54644071,62247.0,62246.0,0.00164]
[1728467270093,0.54844071,62247.0,62246.0,0.00164]
[1728467270293,0.54644071,62247.0,62246.0,0.00164]
[1728467271090,0.54844071,62247.0,62246.0,0.00164]
[1728467271324,0.54644071,62247.0,62246.0,0.00164]
[1728467271987,0.20230863,62247.0,62246.0,0.17154]
[1728467272232,0.20604609,62247.0,62246.0,0.17154]
[1728467273501,0.20121268,62247.0,62246.0,0.17154]
[1728467281132,0.20321268,62247.0,62246.0,0.17154]
[1728467281371,0.32158484,62247.0,62246.0,0.17154]
[1728467281578,0.31584738,62247.0,62246.0,0.17154]
[1728467281767,0.31958484,62247.0,62246.0,0.17154]
[1728467281964,0.31584738,62247.0,62246.0,0.17154]
[1728467290445,0.03682522,62247.0,62246.0,0.29280171]
[1728467290666,0.03682522,62247.0,62246.0,0.45345371]
[1728467291171,0.02717934,62247.0,62246.0,0.45345371]
[1728467291371,0.001,62247.0,62246.0,0.29280171]
[1728467291568,0.001,62247.0,62246.0,0.29120171]
[1728467291852,0.001,62247.0,62246.0,0.45685371]
[1728467292917,0.00373746,62252.0,62248.0,0.160646]
[1728467293114,0.00373746,62252.0,62249.0,0.179]
[1728467293314,0.01060386,62251.0,62249.0,0.179]
[1728467293513,0.01060386,62251.0,62249.0,0.171]
[1728467293731,0.01060386,62251.0,62248.0,0.160646]
[1728467293864,0.01060386,62251.0,62249.0,0.171]
[1728467294063,0.160635,62253.0,62248.0,0.160646]
[1728467294271,0.01060386,62252.0,62249.0,0.0909]
[1728467294487,0.01060386,62252.0,62251.0,0.0909]
[1728467294683,0.01060386,62252.0,62251.0,0.171]
[1728467295869,0.00373746,62255.0,62251.0,0.171]
[1728467296120,0.01060386,62254.0,62252.0,0.1682]
[1728467296323,0.01060386,62254.0,62253.0,0.1682]
[1728467296497,0.17123586,62254.0,62253.0,0.1682]
[1728467297935,0.17123586,62254.0,62253.0,0.1702]
[1728467298651,0.17123586,62254.0,62253.0,0.1712]
[1728467298857,0.01060386,62254.0,62253.0,0.1712]
[1728467299064,0.160632,62255.0,62253.0,0.1712]
[1728467299270,0.160632,62255.0,62254.0,0.0973]
[1728467299482,0.02047853,62256.0,62254.0,0.0973]
[1728467299711,0.160627,62256.0,62254.0,0.0973]
[1728467300339,0.160627,62256.0,62255.0,0.0787]
[1728467300543,0.160627,62256.0,62255.0,0.1761]
[1728467300972,0.17123325,62256.0,62255.0,0.1761]
[1728467301932,0.19103378,62256.0,62255.0,0.1761]
[1728467303672,0.19203378,62256.0,62255.0,0.1761]
[1728467304213,0.19303378,62256.0,62255.0,0.1761]
[1728467311200,0.19203378,62256.0,62255.0,0.1761]
[1728467311406,0.19103378,62256.0,62255.0,0.1761]
[1728467311613,0.19203378,62256.0,62255.0,0.1761]
[1728467312890,0.19103378,62256.0,62255.0,0.1761]
[1728467313752,0.19103378,62256.0,62255.0,0.1771]
[1728467313904,0.19103378,62256.0,62255.0,0.1781]
[1728467315918,0.19103378,62256.0,62255.0,0.1771]
[1728467316367,0.19303378,62256.0,62255.0,0.1771]
[1728467316723,0.19103378,62256.0,62255.0,0.1771]
[1728467316927,0.19103378,62256.0,62255.0,0.1761]
[1728467317127,0.19203378,62256.0,62255.0,0.1761]
[1728467317349,0.19403378,62256.0,62255.0,0.1761]
[1728467317766,0.19503378,62256.0,62255.0,0.1761]
[1728467319472,0.17523325,62256.0,62255.0,0.1761]
[1728467334254,0.17223325,62256.0,62255.0,0.1761]
[1728467334697,0.01160625,62256.0,62255.0,0.1761]
[1728467335530,0.01434371,62256.0,62255.0,0.1761]
[1728467338986,0.01060625,62256.0,62255.0,0.336729]
[1728467339199,0.01060625,62256.0,62255.0,0.177742]
[1728467340109,0.00373746,62257.0,62256.0,0.0977]
[1728467340321,0.160622,62258.0,62256.0,0.0977]
[1728467340546,0.00455846,62259.0,62256.0,0.0977]
[1728467340728,0.160621,62258.0,62256.0,0.0977]
[1728467340963,0.00373746,62257.0,62256.0,0.0977]
[1728467341979,0.16436146,62257.0,62256.0,0.0977]
[1728467342205,0.160624,62257.0,62256.0,0.1027]
[1728467342671,0.00455846,62259.0,62256.0,0.1027]
[1728467342868,0.160622,62258.0,62256.0,0.1027]
[1728467343125,0.00373746,62257.0,62256.0,0.1027]
[1728467343345,0.00373746,62257.0,62256.0,0.1057]
[1728467343511,0.00373746,62257.0,62256.0,0.1007]
[1728467343726,0.16436146,62257.0,62256.0,0.1037]
[1728467344144,0.160624,62257.0,62256.0,0.1007]
[1728467344313,0.160624,62257.0,62256.0,0.1057]
[1728467345146,0.160624,62257.0,62256.0,0.1027]
[1728467345550,0.160624,62257.0,62256.0,0.1077]
[1728467345958,0.17125655,62257.0,62256.0,0.1077]
[1728467349135,0.01063255,62257.0,62256.0,0.1077]
[1728467349384,0.01063255,62257.0,62256.0,0.268327]
[1728467349593,0.00455846,62259.0,62256.0,0.1077]
[1728467349761,0.01062638,62257.0,62256.0,0.1077]
[1728467349965,0.16517746,62259.0,62256.0,0.1077]
[1728467350176,0.01063144,62257.0,62256.0,0.1077]
[1728467350388,0.16517746,62259.0,62256.0,0.1077]
[1728467350590,0.01063196,62257.0,62256.0,0.268326]
[1728467350852,0.00455846,62259.0,62257.0,0.0906]
[1728467351068,0.16517946,62259.0,62257.0,0.0906]
[1728467352531,0.00455846,62259.0,62257.0,0.0936]
[1728467353081,0.00455846,62259.0,62257.0,0.0966]
[1728467353082,0.16517746,62259.0,62257.0,0.0966]
[1728467355354,0.00455846,62259.0,62257.0,0.0966]
[1728467356563,0.000821,62259.0,62258.0,0.160621]
[1728467357069,0.000821,62259.0,62257.0,0.21786171]
[1728467357265,0.01064095,62258.0,62257.0,0.21786171]
[1728467357890,0.01064095,62258.0,62257.0,0.21186171]
[1728467358438,0.01064095,62258.0,62257.0,0.37248571]
[1728467359078,0.01064095,62258.0,62257.0,0.21686171]
[1728467360399,0.01064095,62258.0,62257.0,0.38248571]
[1728467360870,0.000821,62259.0,62258.0,0.160621]
[1728467361497,0.000821,62259.0,62257.0,0.22186171]
[1728467361955,0.000821,62259.0,62257.0,0.37748571]
[1728467362183,0.000821,62259.0,62258.0,0.003]
[1728467362594,0.000821,62259.0,62257.0,0.37748571]
[1728467363069,0.000821,62259.0,62257.0,0.38048571]
[1728467363762,0.000821,62259.0,62257.0,0.21486171]
[1728467363976,0.000821,62259.0,62258.0,0.160621]
[1728467364193,0.000821,62259.0,62258.0,0.164621]
[1728467364407,0.000821,62259.0,62258.0,0.160621]
[1728467364915,0.01742005,62259.0,62257.0,0.0976]
[1728467365153,0.28562017,62258.0,62257.0,0.004]
[1728467365370,0.160624,62257.0,62256.0,0.001642]
[1728467365609,0.22687138,62257.0,62256.0,0.001642]
[1728467365839,0.25204625,62257.0,62256.0,0.001642]
[1728467366054,0.18953633,62257.0,62256.0,0.001642]
[1728467367591,0.19253633,62257.0,62256.0,0.001642]
[1728467368663,0.19653633,62257.0,62256.0,0.001642]
[1728467370435,0.19353633,62257.0,62256.0,0.001642]
[1728467370617,0.31753498,62257.0,62256.0,0.001642]
[1728467370833,0.31353498,62257.0,62256.0,0.001642]
[1728467371049,0.31753498,62257.0,62256.0,0.001642]
[1728467373909,0.31053498,62257.0,62256.0,0.001642]
[1728467374167,0.31753498,62257.0,62256.0,0.001642]
[1728467374592,0.31453498,62257.0,62256.0,0.001642]
[1728467374795,0.31253498,62257.0,62256.0,0.001642]
[1728467374981,0.31553498,62257.0,62256.0,0.001642]
[1728467376063,0.32621918,62257.0,62256.0,0.001642]
[1728467376298,0.32248172,62257.0,62256.0,0.001642]
[1728467384921,0.20148307,62257.0,62256.0,0.001642]
[1728467385120,0.20522053,62257.0,62256.0,0.001642]
[1728467388741,0.20522053,62257.0,62256.0,0.177742]
[1728467388950,0.04085907,62257.0,62256.0,0.338369]
[1728467389188,0.04085907,62257.0,62256.0,0.177742]
[1728467389189,0.0156842,62257.0,62256.0,0.177742]
[1728467389407,0.0156842,62257.0,62256.0,0.338369]
[1728467389591,0.0126842,62257.0,62256.0,0.338369]
[1728467389797,0.0126842,62257.0,62256.0,0.49878244]
[1728467390004,0.002,62257.0,62256.0,0.59518753]
[1728467390204,0.002,62257.0,62256.0,0.51382196]
[1728467390416,0.000821,62259.0,62258.0,0.160621]
[1728467390645,0.000821,62259.0,62258.0,0.5675336]
[1728467390847,0.000821,62259.0,62258.0,0.5725336]
[1728467391245,0.000821,62259.0,62258.0,0.52439615]
[1728467391646,0.000821,62259.0,62258.0,0.52739615]
[1728467392678,0.000821,62259.0,62258.0,0.52939615]
[1728467394354,0.00373746,62269.0,62267.0,0.005]
[1728467394523,0.0005,62279.0,62259.0,0.1]
[1728467394524,0.0005,62279.0,62272.0,0.241185]
[1728467394733,0.0005,62279.0,62272.0,0.60896015]
[1728467394938,0.00423746,62279.0,62272.0,0.332285]
[1728467395154,0.18805831,62278.0,62272.0,0.332285]
[1728467395353,0.16431046,62277.0,62272.0,0.327285]
[1728467395563,0.00373746,62277.0,62272.0,0.327285]
[1728467395777,0.00182,62273.0,62272.0,0.335285]
[1728467395977,0.00082,62273.0,62272.0,0.327285]
[1728467396814,0.00182,62273.0,62272.0,0.334285]
[1728467397239,0.00182,62273.0,62272.0,0.339285]
[1728467397649,0.00182,62273.0,62272.0,0.334285]
[1728467397859,0.00182,62273.0,62272.0,0.342285]
[1728467398284,0.00182,62273.0,62272.0,0.334285]
[1728467398511,0.00182,62273.0,62272.0,0.342285]
[1728467398718,0.00182,62273.0,62272.0,0.334285]
[1728467398930,0.00082,62273.0,62272.0,0.327285]
[1728467399133,0.00082,62273.0,62272.0,0.45754671]
[1728467399349,0.00182,62273.0,62272.0,0.46454671]
[1728467399853,0.00082,62273.0,62272.0,0.45754671]
[1728467400094,0.00182,62273.0,62272.0,0.46554671]
[1728467403542,0.00182,62273.0,62272.0,0.344285]
[1728467406028,0.00082,62273.0,62272.0,0.336285]
[1728467406257,0.00182,62273.0,62272.0,0.345285]
[1728467406701,0.00182,62273.0,62272.0,0.336285]
[1728467406916,0.00182,62273.0,62272.0,0.346285]
[1728467407116,0.00282,62273.0,62272.0,0.346285]
[1728467412707,0.01918468,62273.0,62272.0,0.346285]
[1728467413111,0.00282,62273.0,62272.0,0.346285]
[1728467413321,0.01918468,62273.0,62272.0,0.346285]
[1728467413880,0.00282,62273.0,62272.0,0.346285]
[1728467414104,0.00282,62273.0,62272.0,0.255185]
[1728467414789,0.00282,62273.0,62272.0,0.019]
[1728467414790,0.00655746,62273.0,62272.0,0.019]
[1728467415012,0.18350514,62273.0,62272.0,0.019]
[1728467415637,0.18250514,62273.0,62272.0,0.01]
[1728467415867,0.02092214,62273.0,62267.0,0.160598]
[1728467416049,0.02092214,62273.0,62272.0,0.003]
[1728467416050,0.50267414,62273.0,62272.0,0.003]
[1728467416269,0.49893668,62273.0,62272.0,0.003]
[1728467416483,0.160586,62272.0,62267.0,0.160597]
[1728467416697,0.00373746,62271.0,62268.0,0.160595]
[1728467416918,0.02010073,62271.0,62268.0,0.160595]
[1728467417134,0.18069073,62271.0,62265.0,0.00416363]
[1728467417342,0.02010073,62271.0,62265.0,0.00416363]
[1728467417547,0.02010073,62271.0,62268.0,0.160595]
[1728467417548,0.01859414,62270.0,62268.0,0.160595]
[1728467417754,0.0223316,62270.0,62267.0,0.160598]
[1728467417989,0.0223316,62270.0,62268.0,0.166595]
[1728467418271,0.01636327,62269.0,62268.0,0.160595]
[1728467419229,0.002,62270.0,62268.0,0.166595]
[1728467419719,0.01637919,62269.0,62268.0,0.166595]
[1728467419959,0.01637919,62269.0,62268.0,0.160595]
[1728467421120,0.01637919,62269.0,62264.0,0.32536392]
[1728467421379,0.01737919,62269.0,62268.0,0.008]
[1728467421613,0.001,62269.0,62268.0,0.008]
[1728467421854,0.01838059,62269.0,62268.0,0.015]
[1728467422093,0.01738059,62269.0,62268.0,0.167596]
[1728467422352,0.01838059,62269.0,62268.0,0.167596]
[1728467423582,0.01938059,62269.0,62268.0,0.175596]
[1728467425283,0.003,62269.0,62268.0,0.175596]
[1728467425520,0.01934794,62269.0,62268.0,0.175596]
[1728467425759,0.003,62269.0,62268.0,0.175596]
[1728467426181,0.003,62269.0,62268.0,0.265796]
[1728467428430,0.003,62269.0,62268.0,0.345196]
[1728467428637,0.003,62269.0,62268.0,0.50560944]
[1728467440359,0.003,62269.0,62268.0,0.62687115]
[1728467444823,0.003821,62269.0,62268.0,0.62687115]
[1728467447586,0.000821,62269.0,62268.0,0.61187115]
[1728467448010,0.000821,62269.0,62268.0,0.61587115]
[1728467465598,0.000821,62269.0,62268.0,0.66397382]
[1728467466248,0.000821,62269.0,62268.0,0.71587115]
[1728467466918,0.000821,62269.0,62268.0,0.81201421]
[1728467469479,0.000821,62269.0,62268.0,0.6907525]
[1728467469693,0.000821,62269.0,62268.0,0.71587115]
[1728467469897,0.000821,62269.0,62268.0,0.78797287]
[1728467470308,0.000821,62269.0,62268.0,0.71587115]
[1728467471135,0.000821,62269.0,62268.0,0.78796902]
[1728467471381,0.000821,62269.0,62268.0,0.71587115]
[1728467471595,0.000821,62269.0,62268.0,0.8120163]
[1728467472239,0.000821,62269.0,62268.0,0.71587115]
[1728467472684,0.000821,62269.0,62268.0,0.8120163]
[1728467473373,0.000821,62269.0,62268.0,0.71587115]
[1728467482459,0.000821,62269.0,62268.0,0.81203049]
[1728467483099,0.000821,62269.0,62268.0,0.81203152]
[1728467487232,0.000821,62269.0,62268.0,0.81202131]
[1728467487439,0.000821,62269.0,62268.0,0.71587115]
[1728467488061,0.000821,62269.0,62268.0,0.83607124]
[1728467491435,0.000821,62269.0,62268.0,0.71587115]
[1728467491643,0.000821,62269.0,62268.0,0.83605278]
[1728467492715,0.000821,62269.0,62268.0,0.83405278]
[1728467492937,0.004821,62269.0,62268.0,0.71079107]
[1728467493157,0.006821,62269.0,62268.0,0.71187115]
[1728467497274,0.006821,62269.0,62268.0,0.83205278]
[1728467497700,0.006821,62269.0,62268.0,0.71187115]
[1728467497907,0.006821,62269.0,62268.0,0.83205278]
[1728467503343,0.006821,62269.0,62268.0,0.83207806]
[1728467503550,0.006821,62269.0,62268.0,0.71187115]
[1728467515263,0.006821,62269.0,62268.0,0.72690586]
[1728467516491,0.006821,62269.0,62268.0,0.72690586]
[1728467516952,0.006821,62269.0,62268.0,0.72690627]
[1728467520442,0.006821,62269.0,62268.0,0.71187115]
[1728467520624,0.006821,62269.0,62268.0,0.72690605]
[1728467524417,0.006821,62269.0,62268.0,0.72690579]
[1728467529879,0.006821,62269.0,62268.0,0.726907]
[1728467534939,0.006821,62269.0,62268.0,0.7269074]
[1728467538358,0.006821,62269.0,62268.0,0.60564569]
[1728467538574,0.006821,62269.0,62268.0,0.43226622]
[1728467538788,0.09786665,62269.0,62268.0,0.20871543]
[1728467539278,0.10529039,62269.0,62266.0,0.0481253]
[1728467539547,0.02049689,62268.0,62266.0,0.1606]
[1728467539767,0.10129039,62269.0,62265.0,0.321204]
[1728467539989,0.081221,62269.0,62268.0,0.160596]
[1728467540201,0.082221,62269.0,62268.0,0.167596]
[1728467540640,0.1158388,62269.0,62268.0,0.160596]
[1728467540855,0.079221,62269.0,62267.0,0.160597]
[1728467541070,0.001,62268.0,62267.0,0.160597]
[1728467541523,0.08664344,62269.0,62267.0,0.160597]
[1728467541524,0.079221,62269.0,62267.0,0.160597]
[1728467541802,0.00742244,62268.0,62267.0,0.160597]
[1728467542251,0.00842244,62268.0,62267.0,0.011]
[1728467542698,0.00742244,62268.0,62265.0,0.321206]
[1728467542930,0.00742244,62268.0,62266.0,0.160601]
[1728467543165,0.00742244,62268.0,62265.0,0.160603]
[1728467543378,0.00842244,62268.0,62267.0,0.01]
[1728467544041,0.00742244,62268.0,62267.0,0.01]
[1728467544270,0.00742244,62268.0,62261.0,0.160612]
[1728467544271,0.160602,62266.0,62261.0,0.160612]
[1728467544482,0.078,62265.0,62262.0,0.2397794]
[1728467544704,0.160609,62263.0,62259.0,0.162259]
[1728467544916,0.160611,62262.0,62259.0,0.162259]
[1728467545066,0.16801721,62262.0,62259.0,0.162259]
[1728467545275,0.00740621,62262.0,62259.0,0.162259]
[1728467545714,0.00740621,62262.0,62259.0,0.169259]
[1728467545919,0.0944,62261.0,62259.0,0.169259]
[1728467546132,0.0944,62261.0,62259.0,0.008642]
[1728467546335,0.24975939,62260.0,62259.0,0.008642]
[1728467547068,0.24975939,62260.0,62259.0,0.014642]
[1728467547421,0.24975939,62260.0,62259.0,0.007642]
[1728467547620,0.24975939,62260.0,62259.0,0.001642]
[1728467547836,0.36188392,62260.0,62259.0,0.001642]
[1728467548123,0.24702193,62260.0,62259.0,0.018642]
[1728467548648,0.08640593,62260.0,62259.0,0.010642]
[1728467548868,0.24702193,62260.0,62259.0,0.020642]
[1728467551146,0.08640593,62260.0,62259.0,0.020642]
[1728467551373,0.24702193,62260.0,62259.0,0.020642]
[1728467551585,0.35480148,62260.0,62259.0,0.020642]
[1728467551769,0.35106402,62260.0,62259.0,0.020642]
[1728467552194,0.19044802,62260.0,62259.0,0.020642]
[1728467552439,0.08640593,62260.0,62259.0,0.020642]
[1728467553089,0.00840593,62260.0,62259.0,0.020642]
[1728467553354,0.00840593,62260.0,62259.0,0.181261]
[1728467553559,0.001,62260.0,62259.0,0.181261]
[1728467554868,0.00835729,62260.0,62259.0,0.181261]
[1728467556579,0.00835729,62260.0,62259.0,0.020642]
[1728467556786,0.00835729,62260.0,62259.0,0.181261]
[1728467557249,0.05774947,62260.0,62259.0,0.181261]
[1728467559459,0.00917829,62260.0,62259.0,0.181261]
[1728467560796,0.001821,62260.0,62259.0,0.181261]
[1728467563363,0.00917484,62260.0,62259.0,0.181261]
[1728467567521,0.00917484,62260.0,62259.0,0.43507444]
[1728467567730,0.001821,62260.0,62259.0,0.51187444]
[1728467568604,0.001821,62260.0,62259.0,0.63313615]
[1728467572016,0.001821,62260.0,62259.0,0.73313615]
[1728467573104,0.000821,62260.0,62259.0,0.72413615]
[1728467573322,0.005821,62260.0,62259.0,0.72413615]
[1728467574323,0.000821,62260.0,62259.0,0.71413615]
[1728467582697,0.000821,62260.0,62259.0,0.71913615]
[1728467583821,0.000821,62260.0,62259.0,0.84103672]
[1728467584217,0.000821,62260.0,62259.0,0.83903672]
[1728467584863,0.000821,62260.0,62259.0,0.84103672]
[1728467585304,0.000821,62260.0,62259.0,0.84203672]
[1728467585509,0.000821,62260.0,62259.0,0.72213615]
[1728467586481,0.000821,62260.0,62259.0,0.81802444]
[1728467587108,0.000821,62260.0,62259.0,1.20436344]
[1728467587253,0.000821,62260.0,62259.0,1.10847515]
[1728467587697,0.000821,62260.0,62259.0,1.20432885]
[1728467588104,0.000821,62260.0,62259.0,1.10647515]
[1728467588303,0.000821,62260.0,62259.0,1.11147515]
[1728467588507,0.000821,62260.0,62259.0,1.20628365]
[1728467588839,0.000821,62260.0,62259.0,1.21028365]
[1728467589212,0.000821,62260.0,62259.0,1.20628365]
[1728467589403,0.000821,62260.0,62259.0,1.18230449]
[1728467589610,0.000821,62260.0,62259.0,1.18630449]
[1728467590265,0.000821,62260.0,62259.0,1.11447515]
[1728467590472,0.000821,62260.0,62259.0,1.18629391]
[1728467591506,0.000821,62260.0,62259.0,1.11447515]
[1728467591637,0.000821,62260.0,62259.0,1.11647515]
[1728467591854,0.00082,62273.0,62268.0,0.165596]
[1728467592081,0.00082,62273.0,62268.0,0.64458234]
[1728467592427,0.00082,62273.0,62268.0,0.64137115]
[1728467596754,0.00082,62273.0,62268.0,0.54227115]
[1728467597210,0.00082,62273.0,62268.0,0.54645044]
[1728467598226,0.00082,62273.0,62268.0,0.42518873]
[1728467598432,0.00082,62273.0,62268.0,0.54645044]
[1728467600175,0.000821,62269.0,62268.0,0.54645044]
[1728467601152,0.000821,62269.0,62268.0,0.64185044]
[1728467601357,0.000821,62269.0,62268.0,0.71745044]
[1728467603524,0.000821,62269.0,62268.0,0.76536897]
[1728467604564,0.000821,62269.0,62268.0,0.81328751]
[1728467607074,0.000821,62269.0,62268.0,0.71745044]
[1728467607283,0.000821,62269.0,62268.0,0.72245044]
[1728467607491,0.000821,62269.0,62268.0,0.86620605]
[1728467608871,0.000821,62269.0,62268.0,0.72245044]
[1728467609605,0.000821,62269.0,62268.0,0.86659912]
[1728467611668,0.000821,62269.0,62268.0,0.75465044]
[1728467612765,0.000821,62269.0,62268.0,0.75865044]
[1728467614300,0.000821,62269.0,62268.0,0.76165044]
[1728467615607,0.000821,62269.0,62268.0,0.90569645]
[1728467617159,0.000821,62269.0,62268.0,0.90570461]
[1728467619057,0.000821,62271.0,62270.0,0.44709]
[1728467619279,0.000821,62271.0,62270.0,0.74652974]
[1728467620432,0.000821,62271.0,62270.0,0.74852974]
[1728467621125,0.000821,62271.0,62270.0,0.74952974]